[Event "Late-Titled-Tuesday-Blitz-May-28-2024"]
[Site "Chess.com"]
[Date "2024.05.28"]
[Round "4"]
[White "moro182"]
[Black "nihalsarin"]
[Result "0-1"]
[WhiteElo "2887"]
[BlackElo "3254"]
[TimeControl "180+1"]
[EndTime "14:36:47 PDT"]
[Termination "nihalsarin won by resignation"]

1. d4 {[%clk 0:03:00.9]} 1... Nf6 {[%clk 0:02:55.3]} 2. Nf3 {[%clk 0:02:59.3]}
2... d5 {[%clk 0:02:55]} 3. c4 {[%clk 0:02:58.4]} 3... e6 {[%clk 0:02:55.2]} 4.
g3 {[%clk 0:02:58.3]} 4... Bb4+ {[%clk 0:02:52.4]} 5. Bd2 {[%clk 0:02:57.8]}
5... Bd6 {[%clk 0:02:50.9]} 6. Bg2 {[%clk 0:02:55.6]} 6... c6 {[%clk 0:02:48.9]}
7. Qc2 {[%clk 0:02:55.2]} 7... O-O {[%clk 0:02:48.8]} 8. O-O {[%clk 0:02:54.5]}
8... Nbd7 {[%clk 0:02:49.1]} 9. b3 {[%clk 0:02:51.7]} 9... e5 {[%clk 0:02:44.4]}
10. dxe5 {[%clk 0:02:43.1]} 10... Nxe5 {[%clk 0:02:45.3]} 11. cxd5 {[%clk
0:02:38.5]} 11... Nxd5 {[%clk 0:02:44.5]} 12. Nc3 {[%clk 0:02:36.3]} 12... Nb4
{[%clk 0:02:44.4]} 13. Qb2 {[%clk 0:02:32]} 13... Nxf3+ {[%clk 0:02:44.4]} 14.
Bxf3 {[%clk 0:02:32.9]} 14... Be5 {[%clk 0:02:43.7]} 15. a3 {[%clk 0:02:31.4]}
15... Nd5 {[%clk 0:02:42.8]} 16. Qc2 {[%clk 0:02:27.7]} 16... Nc7 {[%clk
0:02:25.8]} 17. Rac1 {[%clk 0:02:23.3]} 17... Qe7 {[%clk 0:02:25.5]} 18. b4
{[%clk 0:02:09.6]} 18... Bh3 {[%clk 0:02:21.8]} 19. Rfd1 {[%clk 0:02:07.7]}
19... a5 {[%clk 0:02:19.6]} 20. Na4 {[%clk 0:02:03.8]} 20... Nb5 {[%clk
0:02:12.9]} 21. Nb6 {[%clk 0:01:54.8]} 21... Rad8 {[%clk 0:02:06.4]} 22. Nc4
{[%clk 0:01:52.6]} 22... Bf6 {[%clk 0:01:55]} 23. Nxa5 {[%clk 0:01:46.4]} 23...
Nd4 {[%clk 0:01:54.8]} 24. Qd3 {[%clk 0:01:18.6]} 24... Rfe8 {[%clk 0:01:54.8]}
25. Bc3 {[%clk 0:00:57.3]} 25... Nxf3+ {[%clk 0:01:43.4]} 26. Qxf3 {[%clk
0:00:54]} 26... Rxd1+ {[%clk 0:01:33.6]} 27. Rxd1 {[%clk 0:00:54.9]} 27... Bxc3
{[%clk 0:01:34.4]} 28. Qxc3 {[%clk 0:00:54.3]} 28... Qxe2 {[%clk 0:01:35.1]} 29.
Rb1 {[%clk 0:00:32.3]} 29... Qe4 {[%clk 0:01:34]} 0-1

[Event "Late-Titled-Tuesday-Blitz-May-28-2024"]
[Site "Chess.com"]
[Date "2024.05.28"]
[Round "4"]
[White "JonasGallasch"]
[Black "Oleg_Papayan"]
[Result "0-1"]
[WhiteElo "2413"]
[BlackElo "2598"]
[TimeControl "180+1"]
[EndTime "14:36:49 PDT"]
[Termination "Oleg_Papayan won by resignation"]

1. c4 {[%clk 0:02:59.9]} 1... e6 {[%clk 0:02:59.6]} 2. d4 {[%clk 0:02:56.1]}
2... d5 {[%clk 0:02:59.5]} 3. Nf3 {[%clk 0:02:55.7]} 3... Nf6 {[%clk 0:02:59.7]}
4. g3 {[%clk 0:02:55.9]} 4... dxc4 {[%clk 0:02:59.5]} 5. Bg2 {[%clk 0:02:56]}
5... c5 {[%clk 0:03:00.2]} 6. O-O {[%clk 0:02:55]} 6... Nc6 {[%clk 0:03:00.8]}
7. dxc5 {[%clk 0:02:54.7]} 7... Qxd1 {[%clk 0:03:01.7]} 8. Rxd1 {[%clk
0:02:55.4]} 8... Bxc5 {[%clk 0:03:01.4]} 9. Nbd2 {[%clk 0:02:56.1]} 9... c3
{[%clk 0:03:02]} 10. bxc3 {[%clk 0:02:57]} 10... O-O {[%clk 0:03:02.2]} 11. Nb3
{[%clk 0:02:57.6]} 11... Be7 {[%clk 0:03:02.8]} 12. Nfd4 {[%clk 0:02:58]} 12...
Nxd4 {[%clk 0:03:01.2]} 13. cxd4 {[%clk 0:02:56.8]} 13... Nd5 {[%clk 0:03:00.7]}
14. Bb2 {[%clk 0:02:55.7]} 14... f5 {[%clk 0:02:59.8]} 15. Nc5 {[%clk
0:02:45.6]} 15... b6 {[%clk 0:02:57]} 16. Nd3 {[%clk 0:02:45.1]} 16... Ba6
{[%clk 0:02:50.3]} 17. Rac1 {[%clk 0:02:36]} 17... Rac8 {[%clk 0:02:48.6]} 18.
Bxd5 {[%clk 0:02:11.1]} 18... exd5 {[%clk 0:02:47]} 19. Nf4 {[%clk 0:02:11.4]}
19... Bc4 {[%clk 0:02:35.6]} 20. h4 {[%clk 0:02:06.2]} 20... Kf7 {[%clk
0:02:25.6]} 21. Rc2 {[%clk 0:01:53.4]} 21... Bd6 {[%clk 0:02:04.6]} 22. Rdc1
{[%clk 0:01:24.4]} 22... Bxf4 {[%clk 0:01:54.8]} 23. gxf4 {[%clk 0:01:25.3]}
23... Rc6 {[%clk 0:01:45.4]} 24. Kh2 {[%clk 0:01:17]} 24... Re8 {[%clk
0:01:35.7]} 25. e3 {[%clk 0:01:17]} 25... Rh6 {[%clk 0:01:32.7]} 26. Kg3 {[%clk
0:01:15.3]} 26... Ree6 {[%clk 0:01:33.2]} 27. f3 {[%clk 0:01:02.2]} 27... Rxe3
{[%clk 0:01:31.8]} 28. Rc3 {[%clk 0:00:58.8]} 28... Re2 {[%clk 0:01:23.4]} 29.
R1c2 {[%clk 0:00:58.4]} 29... Ree6 {[%clk 0:01:15.3]} 30. Rh2 {[%clk 0:00:50.8]}
30... Rhg6+ {[%clk 0:01:11.4]} 31. Kh3 {[%clk 0:00:46.9]} 31... Bf1+ {[%clk
0:01:10.2]} 0-1

[Event "Late-Titled-Tuesday-Blitz-May-28-2024"]
[Site "Chess.com"]
[Date "2024.05.28"]
[Round "4"]
[White "2L8IWUN"]
[Black "H3nriqueTV"]
[Result "0-1"]
[WhiteElo "2172"]
[BlackElo "2364"]
[TimeControl "180+1"]
[EndTime "14:36:59 PDT"]
[Termination "H3nriqueTV won by resignation"]

1. d4 {[%clk 0:03:00.9]} 1... Nf6 {[%clk 0:02:57.2]} 2. Nf3 {[%clk 0:03:01.4]}
2... g6 {[%clk 0:02:55.8]} 3. g3 {[%clk 0:03:01.2]} 3... Bg7 {[%clk 0:02:56.3]}
4. Bg2 {[%clk 0:03:02]} 4... O-O {[%clk 0:02:57]} 5. O-O {[%clk 0:03:02.6]} 5...
d5 {[%clk 0:02:57.6]} 6. c4 {[%clk 0:03:02.4]} 6... c5 {[%clk 0:02:57.8]} 7.
dxc5 {[%clk 0:03:01.8]} 7... dxc4 {[%clk 0:02:58.1]} 8. Ne5 {[%clk 0:02:40.8]}
8... Qc7 {[%clk 0:02:51.7]} 9. Nxc4 {[%clk 0:02:33.3]} 9... Qxc5 {[%clk
0:02:49.7]} 10. Qc2 {[%clk 0:02:10.1]} 10... Nc6 {[%clk 0:02:42.6]} 11. Be3
{[%clk 0:02:09.1]} 11... Qh5 {[%clk 0:02:37.4]} 12. Nc3 {[%clk 0:01:45.6]} 12...
Bh3 {[%clk 0:02:37.2]} 13. f3 {[%clk 0:00:58.7]} 13... Bxg2 {[%clk 0:01:47.6]}
14. Kxg2 {[%clk 0:00:59.6]} 14... Nb4 {[%clk 0:01:31.4]} 15. Qa4 {[%clk
0:00:50.2]} 15... Nbd5 {[%clk 0:01:30.1]} 16. Bd4 {[%clk 0:00:46.4]} 16... Rac8
{[%clk 0:01:27.3]} 17. Nxd5 {[%clk 0:00:43.7]} 17... Qxd5 {[%clk 0:01:23.7]} 18.
Ne3 {[%clk 0:00:39.5]} 18... Qe6 {[%clk 0:01:16.6]} 19. Rac1 {[%clk 0:00:33.6]}
19... a6 {[%clk 0:01:15.6]} 20. Qb3 {[%clk 0:00:20]} 20... Qxb3 {[%clk
0:01:05.7]} 21. axb3 {[%clk 0:00:20.9]} 21... Ng4 {[%clk 0:01:05.1]} 22. Bxg7
{[%clk 0:00:20.8]} 22... Nxe3+ {[%clk 0:01:05.2]} 23. Kf2 {[%clk 0:00:20.3]}
23... Nxf1 {[%clk 0:01:05.9]} 24. Bxf8 {[%clk 0:00:19.6]} 24... Rxc1 {[%clk
0:01:06]} 0-1

[Event "Late-Titled-Tuesday-Blitz-May-28-2024"]
[Site "Chess.com"]
[Date "2024.05.28"]
[Round "4"]
[White "Dolphin_2010"]
[Black "CristhianPortalR"]
[Result "1-0"]
[WhiteElo "2746"]
[BlackElo "2540"]
[TimeControl "180+1"]
[EndTime "14:37:08 PDT"]
[Termination "Dolphin_2010 won by resignation"]

1. d4 {[%clk 0:03:00.9]} 1... d5 {[%clk 0:02:59.8]} 2. c4 {[%clk 0:03:00.4]}
2... c6 {[%clk 0:02:59.5]} 3. Nc3 {[%clk 0:03:00.5]} 3... Nf6 {[%clk 0:02:58.6]}
4. cxd5 {[%clk 0:03:00.9]} 4... cxd5 {[%clk 0:02:58.3]} 5. Bf4 {[%clk
0:03:01.5]} 5... Nc6 {[%clk 0:02:58.5]} 6. e3 {[%clk 0:03:02.1]} 6... a6 {[%clk
0:02:58.7]} 7. Bd3 {[%clk 0:03:02.4]} 7... Bg4 {[%clk 0:02:59.1]} 8. Nf3 {[%clk
0:02:58.1]} 8... e6 {[%clk 0:02:56.7]} 9. O-O {[%clk 0:02:57]} 9... Bd6 {[%clk
0:02:55.6]} 10. Bxd6 {[%clk 0:02:54.8]} 10... Qxd6 {[%clk 0:02:55.5]} 11. h3
{[%clk 0:02:55]} 11... Bh5 {[%clk 0:02:46.3]} 12. Rc1 {[%clk 0:02:53.9]} 12...
O-O {[%clk 0:02:45.8]} 13. a3 {[%clk 0:02:53.5]} 13... e5 {[%clk 0:02:10.9]} 14.
dxe5 {[%clk 0:02:51.9]} 14... Nxe5 {[%clk 0:02:11.1]} 15. Be2 {[%clk 0:02:51.8]}
15... Bxf3 {[%clk 0:02:10.7]} 16. Bxf3 {[%clk 0:02:52.7]} 16... Rfd8 {[%clk
0:02:10.8]} 17. Ne2 {[%clk 0:02:35.8]} 17... Nxf3+ {[%clk 0:02:08.1]} 18. gxf3
{[%clk 0:02:36.7]} 18... Qe6 {[%clk 0:02:01.4]} 19. Kg2 {[%clk 0:02:36.2]} 19...
Qe5 {[%clk 0:02:00.7]} 20. Qd4 {[%clk 0:02:35.6]} 20... Qg5+ {[%clk 0:02:00.2]}
21. Kh2 {[%clk 0:02:35]} 21... Qh5 {[%clk 0:01:55.6]} 22. Qf4 {[%clk 0:01:06.5]}
22... Re8 {[%clk 0:01:34.5]} 23. Nd4 {[%clk 0:00:56.8]} 23... Nd7 {[%clk
0:00:56.1]} 24. Rc7 {[%clk 0:00:50.5]} 24... Ne5 {[%clk 0:00:49.6]} 25. Rg1
{[%clk 0:00:50]} 25... Ng6 {[%clk 0:00:42.1]} 26. Qxf7+ {[%clk 0:00:47.4]} 1-0

[Event "Late-Titled-Tuesday-Blitz-May-28-2024"]
[Site "Chess.com"]
[Date "2024.05.28"]
[Round "4"]
[White "ChadBiryani"]
[Black "NikaVolkov"]
[Result "0-1"]
[WhiteElo "2541"]
[BlackElo "2760"]
[TimeControl "180+1"]
[EndTime "14:37:10 PDT"]
[Termination "NikaVolkov won by checkmate"]

1. c4 {[%clk 0:03:00.9]} 1... e6 {[%clk 0:03:00.4]} 2. g3 {[%clk 0:03:00.4]}
2... d5 {[%clk 0:03:01]} 3. Bg2 {[%clk 0:03:00.7]} 3... Nf6 {[%clk 0:03:01.7]}
4. Nf3 {[%clk 0:03:00.8]} 4... Be7 {[%clk 0:03:02.4]} 5. O-O {[%clk 0:03:00.5]}
5... O-O {[%clk 0:03:03.2]} 6. b3 {[%clk 0:02:55.2]} 6... c5 {[%clk 0:03:03.3]}
7. cxd5 {[%clk 0:02:55.1]} 7... Nxd5 {[%clk 0:03:03.2]} 8. Bb2 {[%clk
0:02:54.6]} 8... Bf6 {[%clk 0:03:03.8]} 9. Nc3 {[%clk 0:02:53.9]} 9... Nc6
{[%clk 0:03:03.6]} 10. Qc2 {[%clk 0:02:32.3]} 10... b6 {[%clk 0:03:00.5]} 11.
Rad1 {[%clk 0:02:30]} 11... Ba6 {[%clk 0:02:59.3]} 12. Rfe1 {[%clk 0:02:28.9]}
12... Qe7 {[%clk 0:02:55.4]} 13. a3 {[%clk 0:02:21.8]} 13... Rac8 {[%clk
0:02:55]} 14. d3 {[%clk 0:02:22.1]} 14... Nd4 {[%clk 0:02:53.5]} 15. Nxd5 {[%clk
0:02:17.4]} 15... exd5 {[%clk 0:02:25.6]} 16. Nxd4 {[%clk 0:02:16.9]} 16... cxd4
{[%clk 0:02:25.7]} 17. Qd2 {[%clk 0:02:16.5]} 17... Bb7 {[%clk 0:02:17.8]} 18.
Rc1 {[%clk 0:02:04.5]} 18... Bg5 {[%clk 0:02:11.8]} 19. f4 {[%clk 0:02:04.5]}
19... Bf6 {[%clk 0:02:12.4]} 20. Rxc8 {[%clk 0:01:41.1]} 20... Rxc8 {[%clk
0:02:13.3]} 21. Rc1 {[%clk 0:01:37.9]} 21... Re8 {[%clk 0:02:12.9]} 22. Kf1
{[%clk 0:01:32.8]} 22... h5 {[%clk 0:02:10.1]} 23. Bf3 {[%clk 0:01:29.6]} 23...
h4 {[%clk 0:02:09.1]} 24. g4 {[%clk 0:01:29.7]} 24... g5 {[%clk 0:02:09.5]} 25.
f5 {[%clk 0:01:25.4]} 25... Qe5 {[%clk 0:02:08.4]} 26. Kg2 {[%clk 0:01:20.6]}
26... Kg7 {[%clk 0:02:05.9]} 27. a4 {[%clk 0:01:00.9]} 27... h3+ {[%clk
0:01:55.8]} 28. Kg1 {[%clk 0:00:49.5]} 28... Kh6 {[%clk 0:01:42.7]} 29. Qb4
{[%clk 0:00:31.9]} 29... Qe3+ {[%clk 0:01:32.6]} 30. Kh1 {[%clk 0:00:22.9]}
30... Ba6 {[%clk 0:01:20.5]} 31. Qd6 {[%clk 0:00:21]} 31... Kg7 {[%clk
0:01:20.3]} 32. Rc6 {[%clk 0:00:20.6]} 32... Qxf3+ {[%clk 0:01:13.9]} 33. exf3
{[%clk 0:00:19.2]} 33... Re1# {[%clk 0:01:14.8]} 0-1

[Event "Late-Titled-Tuesday-Blitz-May-28-2024"]
[Site "Chess.com"]
[Date "2024.05.28"]
[Round "4"]
[White "Galileo22"]
[Black "Smiechu"]
[Result "0-1"]
[WhiteElo "2641"]
[BlackElo "2468"]
[TimeControl "180+1"]
[EndTime "14:37:11 PDT"]
[Termination "Smiechu won by checkmate"]

1. d4 {[%clk 0:03:00.9]} 1... Nf6 {[%clk 0:02:58.2]} 2. Bf4 {[%clk 0:03:00.8]}
2... c5 {[%clk 0:02:55.6]} 3. d5 {[%clk 0:02:59.8]} 3... e6 {[%clk 0:02:55]} 4.
c4 {[%clk 0:02:58.2]} 4... exd5 {[%clk 0:02:54.9]} 5. cxd5 {[%clk 0:02:58.2]}
5... g6 {[%clk 0:02:54.5]} 6. Nc3 {[%clk 0:02:57.7]} 6... d6 {[%clk 0:02:54.3]}
7. e4 {[%clk 0:02:54.1]} 7... Bg7 {[%clk 0:02:50.9]} 8. Qa4+ {[%clk 0:02:53.7]}
8... Bd7 {[%clk 0:02:49.4]} 9. Qb3 {[%clk 0:02:43.8]} 9... Qc7 {[%clk
0:02:46.3]} 10. Bb5 {[%clk 0:02:17.2]} 10... O-O {[%clk 0:02:39.3]} 11. f3
{[%clk 0:02:09.7]} 11... a6 {[%clk 0:02:35.5]} 12. Bxd7 {[%clk 0:02:07.8]} 12...
Nbxd7 {[%clk 0:02:35.7]} 13. a4 {[%clk 0:02:06.5]} 13... Rfe8 {[%clk 0:02:34]}
14. Nge2 {[%clk 0:02:05.9]} 14... Nh5 {[%clk 0:02:32.7]} 15. Bd2 {[%clk
0:02:01.7]} 15... Ne5 {[%clk 0:02:32.6]} 16. O-O {[%clk 0:02:00.1]} 16... c4
{[%clk 0:02:23.9]} 17. Qc2 {[%clk 0:01:59.6]} 17... Qc5+ {[%clk 0:02:21.6]} 18.
Kh1 {[%clk 0:01:59.2]} 18... Nd3 {[%clk 0:02:21.4]} 19. Nd1 {[%clk 0:01:58]}
19... b5 {[%clk 0:01:50.3]} 20. Rb1 {[%clk 0:01:47.5]} 20... f5 {[%clk
0:01:40.8]} 21. b4 {[%clk 0:01:34.1]} 21... Qc7 {[%clk 0:01:26.7]} 22. Nec3
{[%clk 0:01:34]} 22... Qe7 {[%clk 0:01:17.2]} 23. exf5 {[%clk 0:01:29.8]} 23...
Qh4 {[%clk 0:01:15.2]} 24. Ne3 {[%clk 0:01:07]} 24... Bd4 {[%clk 0:00:59.1]} 25.
Ncd1 {[%clk 0:00:48.3]} 25... Ng3+ {[%clk 0:00:45.4]} 26. Kg1 {[%clk 0:00:48.1]}
26... Nxf1 {[%clk 0:00:45.4]} 27. Kxf1 {[%clk 0:00:47.2]} 27... Bxe3 {[%clk
0:00:37.7]} 28. Bxe3 {[%clk 0:00:46.4]} 28... Qe1# {[%clk 0:00:37]} 0-1

[Event "Late-Titled-Tuesday-Blitz-May-28-2024"]
[Site "Chess.com"]
[Date "2024.05.28"]
[Round "4"]
[White "VirtualCoach"]
[Black "Pig-filth"]
[Result "0-1"]
[WhiteElo "2188"]
[BlackElo "2363"]
[TimeControl "180+1"]
[EndTime "14:37:15 PDT"]
[Termination "Pig-filth won by resignation"]

1. Nf3 {[%clk 0:03:00.4]} 1... Nc6 {[%clk 0:02:57.2]} 2. d4 {[%clk 0:02:59.6]}
2... d5 {[%clk 0:02:57.3]} 3. c4 {[%clk 0:02:58.2]} 3... e6 {[%clk 0:02:52.8]}
4. e3 {[%clk 0:02:56.3]} 4... Nf6 {[%clk 0:02:50.4]} 5. Nc3 {[%clk 0:02:54.5]}
5... Bd6 {[%clk 0:02:46.2]} 6. Bd2 {[%clk 0:02:48.4]} 6... O-O {[%clk
0:02:42.6]} 7. Bd3 {[%clk 0:02:48.2]} 7... dxc4 {[%clk 0:02:38.6]} 8. Bxc4
{[%clk 0:02:47.9]} 8... e5 {[%clk 0:02:38.3]} 9. dxe5 {[%clk 0:02:23.4]} 9...
Nxe5 {[%clk 0:02:39.2]} 10. Be2 {[%clk 0:02:23]} 10... Qe7 {[%clk 0:02:30.1]}
11. O-O {[%clk 0:02:20.9]} 11... Rd8 {[%clk 0:02:26.4]} 12. Qc2 {[%clk
0:02:06.5]} 12... Nxf3+ {[%clk 0:02:23.8]} 13. Bxf3 {[%clk 0:02:04.9]} 13... Qe5
{[%clk 0:02:22]} 14. g3 {[%clk 0:02:02.1]} 14... c6 {[%clk 0:02:19.8]} 15. Bg2
{[%clk 0:01:59.1]} 15... Bc7 {[%clk 0:02:16.1]} 16. Ne2 {[%clk 0:01:56.4]} 16...
Bf5 {[%clk 0:02:11.5]} 17. Qc3 {[%clk 0:01:41.9]} 17... Ne4 {[%clk 0:01:59.4]}
18. Qxe5 {[%clk 0:01:34.4]} 18... Bxe5 {[%clk 0:02:00.3]} 19. Bc3 {[%clk
0:01:10.5]} 19... Nxc3 {[%clk 0:01:53.7]} 20. Nxc3 {[%clk 0:01:11.2]} 20... Rd2
{[%clk 0:01:49.4]} 21. e4 {[%clk 0:01:00.8]} 21... Be6 {[%clk 0:01:45.7]} 22.
Rab1 {[%clk 0:00:57.8]} 22... Rad8 {[%clk 0:01:41.9]} 23. a3 {[%clk 0:00:46.9]}
23... f6 {[%clk 0:01:35.5]} 24. Kh1 {[%clk 0:00:31.9]} 24... Bc4 {[%clk
0:01:22.2]} 25. Rfd1 {[%clk 0:00:23.2]} 25... Bxc3 {[%clk 0:01:20.9]} 0-1

[Event "Late-Titled-Tuesday-Blitz-May-28-2024"]
[Site "Chess.com"]
[Date "2024.05.28"]
[Round "4"]
[White "Mikhail_Golubev"]
[Black "sergiochess83"]
[Result "0-1"]
[WhiteElo "2651"]
[BlackElo "2884"]
[TimeControl "180+1"]
[EndTime "14:37:16 PDT"]
[Termination "sergiochess83 won by checkmate"]

1. e4 {[%clk 0:03:00.9]} 1... c5 {[%clk 0:03:00]} 2. Nf3 {[%clk 0:03:00.1]} 2...
e6 {[%clk 0:02:59.2]} 3. d4 {[%clk 0:02:59.9]} 3... cxd4 {[%clk 0:02:59.5]} 4.
Nxd4 {[%clk 0:03:00.3]} 4... Nc6 {[%clk 0:02:59.4]} 5. Nc3 {[%clk 0:03:00.2]}
5... a6 {[%clk 0:02:59.7]} 6. Be3 {[%clk 0:02:59.2]} 6... Nf6 {[%clk 0:02:58.1]}
7. Bd3 {[%clk 0:02:59.2]} 7... Qc7 {[%clk 0:02:57.1]} 8. O-O {[%clk 0:02:59]}
8... Bd6 {[%clk 0:02:48.3]} 9. f4 {[%clk 0:02:54.2]} 9... Nxd4 {[%clk 0:02:40]}
10. e5 {[%clk 0:02:52.6]} 10... Bc5 {[%clk 0:02:05.2]} 11. exf6 {[%clk 0:02:52]}
11... gxf6 {[%clk 0:02:05.1]} 12. Ne4 {[%clk 0:02:44.1]} 12... Bb6 {[%clk
0:02:05.2]} 13. Nxf6+ {[%clk 0:02:13.1]} 13... Ke7 {[%clk 0:02:03.6]} 14. Qh5
{[%clk 0:01:50.3]} 14... Nxc2 {[%clk 0:01:17.6]} 15. Bxb6 {[%clk 0:01:49.8]}
15... Qxb6+ {[%clk 0:01:17.3]} 16. Kh1 {[%clk 0:01:50]} 16... Nxa1 {[%clk
0:01:14.5]} 17. Qg5 {[%clk 0:01:47.1]} 17... Qxb2 {[%clk 0:00:58.6]} 18. Ne4+
{[%clk 0:00:58]} 18... Ke8 {[%clk 0:00:56.4]} 19. Nd6+ {[%clk 0:00:55.4]} 19...
Kf8 {[%clk 0:00:54.9]} 20. f5 {[%clk 0:00:22.6]} 20... Rg8 {[%clk 0:00:52.4]}
21. Qh6+ {[%clk 0:00:17.7]} 21... Ke7 {[%clk 0:00:49.1]} 22. fxe6 {[%clk
0:00:16]} 22... Qxg2# {[%clk 0:00:48.1]} 0-1

[Event "Late-Titled-Tuesday-Blitz-May-28-2024"]
[Site "Chess.com"]
[Date "2024.05.28"]
[Round "4"]
[White "platy3"]
[Black "Grebnev_A"]
[Result "0-1"]
[WhiteElo "2862"]
[BlackElo "2650"]
[TimeControl "180+1"]
[EndTime "14:37:16 PDT"]
[Termination "Grebnev_A won by resignation"]

1. e4 {[%clk 0:02:46.7]} 1... c5 {[%clk 0:03:00]} 2. Nf3 {[%clk 0:02:43.9]} 2...
Nc6 {[%clk 0:03:00.2]} 3. d4 {[%clk 0:02:43.1]} 3... cxd4 {[%clk 0:03:01.1]} 4.
Nxd4 {[%clk 0:02:44]} 4... g6 {[%clk 0:03:01.5]} 5. c4 {[%clk 0:02:44]} 5... Nf6
{[%clk 0:03:01.3]} 6. Nc3 {[%clk 0:02:44]} 6... d6 {[%clk 0:03:01.6]} 7. f3
{[%clk 0:02:43.9]} 7... Nxd4 {[%clk 0:03:01.5]} 8. Qxd4 {[%clk 0:02:44.8]} 8...
Bg7 {[%clk 0:03:02.3]} 9. Be3 {[%clk 0:02:45.5]} 9... O-O {[%clk 0:03:02]} 10.
Qd2 {[%clk 0:02:46.2]} 10... a5 {[%clk 0:03:02.6]} 11. b3 {[%clk 0:02:45.3]}
11... a4 {[%clk 0:02:59.6]} 12. b4 {[%clk 0:02:45]} 12... Be6 {[%clk 0:03:00.2]}
13. Rc1 {[%clk 0:02:45.1]} 13... Nd7 {[%clk 0:02:58.7]} 14. Be2 {[%clk
0:02:44.1]} 14... Ne5 {[%clk 0:02:58.4]} 15. Nb5 {[%clk 0:02:44.4]} 15... Rc8
{[%clk 0:02:55.7]} 16. Na3 {[%clk 0:02:44.7]} 16... b5 {[%clk 0:02:42.8]} 17.
cxb5 {[%clk 0:02:41.4]} 17... Rxc1+ {[%clk 0:02:43.7]} 18. Qxc1 {[%clk
0:02:41.8]} 18... Bxa2 {[%clk 0:02:44.5]} 19. O-O {[%clk 0:02:39.2]} 19... Qb8
{[%clk 0:02:42.2]} 20. b6 {[%clk 0:02:32.4]} 20... Rc8 {[%clk 0:02:40.7]} 21.
Qd2 {[%clk 0:02:31.7]} 21... Bb3 {[%clk 0:02:39.6]} 22. Rc1 {[%clk 0:02:30.7]}
22... Nd7 {[%clk 0:02:34.1]} 23. Rxc8+ {[%clk 0:02:23.6]} 23... Qxc8 {[%clk
0:02:35]} 24. Bb5 {[%clk 0:02:24]} 24... Bc3 {[%clk 0:02:24.1]} 25. Qc1 {[%clk
0:02:20.5]} 25... Nxb6 {[%clk 0:02:23.9]} 26. Kh1 {[%clk 0:01:45.1]} 26... Bxb4
{[%clk 0:02:18.5]} 27. Qb2 {[%clk 0:01:13.5]} 27... Bc5 {[%clk 0:01:47]} 28. Bh6
{[%clk 0:01:10.5]} 28... e5 {[%clk 0:01:41.5]} 29. h3 {[%clk 0:01:06.2]} 29...
Bd4 {[%clk 0:01:27.3]} 30. Qd2 {[%clk 0:00:56]} 30... Qc3 {[%clk 0:01:27.2]} 31.
Qxc3 {[%clk 0:00:18.1]} 31... Bxc3 {[%clk 0:01:28.1]} 32. Be3 {[%clk 0:00:18.6]}
32... Bb2 {[%clk 0:01:17.4]} 33. Nb1 {[%clk 0:00:17.3]} 33... Nc4 {[%clk
0:01:17.7]} 0-1

[Event "Late-Titled-Tuesday-Blitz-May-28-2024"]
[Site "Chess.com"]
[Date "2024.05.28"]
[Round "4"]
[White "DonPreuss"]
[Black "th3d4rkness"]
[Result "1/2-1/2"]
[WhiteElo "2295"]
[BlackElo "2152"]
[TimeControl "180+1"]
[EndTime "14:37:18 PDT"]
[Termination "Game drawn by repetition"]

1. d4 {[%clk 0:03:00.9]} 1... Nf6 {[%clk 0:02:59.5]} 2. Nc3 {[%clk 0:03:00.7]}
2... e6 {[%clk 0:02:58.9]} 3. e4 {[%clk 0:03:00.2]} 3... d5 {[%clk 0:02:59.3]}
4. exd5 {[%clk 0:02:59.4]} 4... Nxd5 {[%clk 0:02:57.5]} 5. Bd3 {[%clk
0:02:59.5]} 5... Nxc3 {[%clk 0:02:56.5]} 6. bxc3 {[%clk 0:03:00.4]} 6... Be7
{[%clk 0:02:56.3]} 7. Ne2 {[%clk 0:03:00.8]} 7... Bf6 {[%clk 0:02:55.9]} 8. O-O
{[%clk 0:03:00.9]} 8... O-O {[%clk 0:02:49.1]} 9. Ng3 {[%clk 0:02:59.6]} 9... g6
{[%clk 0:02:48.8]} 10. Bh6 {[%clk 0:02:57.6]} 10... Bg7 {[%clk 0:02:48.8]} 11.
Qd2 {[%clk 0:02:55.2]} 11... Qh4 {[%clk 0:02:46]} 12. Bxg7 {[%clk 0:02:54.2]}
12... Kxg7 {[%clk 0:02:46]} 13. Rae1 {[%clk 0:02:44.4]} 13... Nd7 {[%clk
0:02:44.8]} 14. f4 {[%clk 0:02:30.5]} 14... Nf6 {[%clk 0:02:41.9]} 15. Ne4
{[%clk 0:02:12.6]} 15... Bd7 {[%clk 0:02:34.3]} 16. g3 {[%clk 0:01:53.8]} 16...
Qh5 {[%clk 0:02:26.8]} 17. Nxf6 {[%clk 0:01:52]} 17... Kxf6 {[%clk 0:02:26.4]}
18. Be4 {[%clk 0:01:51.8]} 18... Bc6 {[%clk 0:02:23.2]} 19. Bxc6 {[%clk
0:01:49.3]} 19... bxc6 {[%clk 0:02:22.8]} 20. Qe3 {[%clk 0:01:48.5]} 20... Kg7
{[%clk 0:02:16.9]} 21. Rb1 {[%clk 0:01:41.3]} 21... Rab8 {[%clk 0:02:16.8]} 22.
Rb3 {[%clk 0:01:41.5]} 22... Rxb3 {[%clk 0:02:15.6]} 23. axb3 {[%clk 0:01:39.9]}
23... a5 {[%clk 0:02:05.9]} 24. Qe5+ {[%clk 0:01:33.2]} 24... Qxe5 {[%clk
0:02:05.2]} 25. fxe5 {[%clk 0:01:34.1]} 25... Ra8 {[%clk 0:02:01.6]} 26. Ra1
{[%clk 0:01:33.8]} 26... f6 {[%clk 0:01:58.1]} 27. exf6+ {[%clk 0:01:32.8]}
27... Kxf6 {[%clk 0:01:58]} 28. Ra4 {[%clk 0:01:32.5]} 28... e5 {[%clk
0:01:53.3]} 29. dxe5+ {[%clk 0:01:26.7]} 29... Kxe5 {[%clk 0:01:53.3]} 30. b4
{[%clk 0:01:27.3]} 30... Kd5 {[%clk 0:01:49]} 31. bxa5 {[%clk 0:01:24.3]} 31...
Ra6 {[%clk 0:01:44.3]} 32. Kf2 {[%clk 0:01:23]} 32... Kc5 {[%clk 0:01:42.6]} 33.
Ke3 {[%clk 0:01:22.7]} 33... Kb5 {[%clk 0:01:39.5]} 34. Ra1 {[%clk 0:01:01.2]}
34... Rxa5 {[%clk 0:01:37.2]} 35. Rxa5+ {[%clk 0:01:00.6]} 35... Kxa5 {[%clk
0:01:37.4]} 36. Kd4 {[%clk 0:00:58.3]} 36... Kb5 {[%clk 0:01:36.4]} 37. g4
{[%clk 0:00:50.7]} 37... c5+ {[%clk 0:01:29.2]} 38. Kd3 {[%clk 0:00:46.6]} 38...
Kc6 {[%clk 0:01:29.1]} 39. Ke4 {[%clk 0:00:44.3]} 39... Kd6 {[%clk 0:01:27.3]}
40. c4 {[%clk 0:00:44]} 40... Ke6 {[%clk 0:01:22.6]} 41. g5 {[%clk 0:00:44]}
41... c6 {[%clk 0:01:22.8]} 42. h3 {[%clk 0:00:42.3]} 42... Kd6 {[%clk
0:01:22.7]} 43. Kf4 {[%clk 0:00:42.8]} 43... Ke6 {[%clk 0:01:22.6]} 44. Ke4
{[%clk 0:00:33.1]} 44... Kd6 {[%clk 0:01:22.8]} 45. Kf4 {[%clk 0:00:32.8]} 45...
Ke6 {[%clk 0:01:23.1]} 46. Ke4 {[%clk 0:00:33.4]} 1/2-1/2